fUSD/lending_fUSD_20260506
["ID","MTS","AMOUNT","RATE_DAILY","PERIOD"]
[421641943,1778007038000,-948.98232598,0.00023146,2]
[421641941,1778007038000,-237.0,0.00023,2]
[421641956,1778007038000,-500.0,0.00023789,2]
[421641947,1778007038000,-296.02027134,0.00023789,2]
[421641981,1778007038000,-520.96268862,0.00025473,2]
[421641954,1778007038000,-500.0,0.00023789,2]
[421641952,1778007038000,-500.0,0.00023789,2]
[421641953,1778007038000,-500.0,0.00023789,2]
[421641955,1778007038000,-500.0,0.00023789,2]
[421641946,1778007038000,-150.17,0.00023463,2]
[421641944,1778007038000,-531.94,0.00023164,2]
[421641940,1778007038000,-250.0,0.00022858,2]
[421641942,1778007038000,-522.06145725,0.00023146,2]
[421641948,1778007038000,-500.0,0.00023789,2]
[421642030,1778007039000,-155.57,0.00026484,30]
[421642032,1778007039000,-1500.0,0.00026568,2]
[421642025,1778007039000,-258.55980861,0.00026137,2]
[421642029,1778007039000,-450.0,0.00026301,2]
[421642024,1778007039000,-175.99001891,0.00026042,21]
[421642019,1778007039000,-1001.40664377,0.00026021,2]
[421642033,1778007039000,-1500.0,0.00026568,2]
[421642023,1778007039000,-153.11,0.00026027,7]
[421642015,1778007039000,-1000.0,0.00026021,2]
[421642016,1778007039000,-1000.0,0.00026021,2]
[421642027,1778007039000,-500.0,0.00026193,2]
[421642022,1778007039000,-1005.02774698,0.00026021,2]
[421642028,1778007039000,-150.0,0.000262,4]
[421642041,1778007039000,-504.0,0.00027137,2]
[421642031,1778007039000,-156.8,0.00026484,30]
[421642034,1778007039000,-486.75548975,0.00026576,2]
[421642035,1778007039000,-1005.84,0.00026667,2]
[421642037,1778007039000,-2000.0,0.00027116,2]
[421642039,1778007039000,-508.0,0.00027137,2]
[421642036,1778007039000,-553.45901732,0.00026849,2]
[421642038,1778007039000,-2000.0,0.00027116,2]
[421642043,1778007039000,-1500.0,0.00027397,2]
[421642042,1778007039000,-150.0,0.00027397,2]
[421642040,1778007039000,-522.0,0.00027137,2]
[421642044,1778007039000,-163.34,0.00027397,10]
[421642045,1778007039000,-207.17,0.000274,2]
[421642018,1778007039000,-614.70602991,0.00026021,2]
[421642026,1778007039000,-16738.69,0.00026138,2]
[421642017,1778007039000,-1000.0,0.00026021,2]
[421642007,1778007039000,-3872.77,0.00025786,2]
[421642020,1778007039000,-1003.48747475,0.00026021,2]
[421642046,1778007039000,-207.17,0.000274,2]
[421641986,1778007039000,-500.0,0.00025473,2]
[421641989,1778007039000,-500.0,0.00025473,2]
[421641988,1778007039000,-500.0,0.00025473,2]
[421641990,1778007039000,-500.0,0.00025473,2]
[421641991,1778007039000,-517.58814102,0.00025473,2]
[421641987,1778007039000,-500.0,0.00025473,2]
[421641992,1778007039000,-3539.28992609,0.00025499,2]
[421641993,1778007039000,-52344.035422,0.000255,2]
[421641997,1778007039000,-155.57,0.00025571,7]
[421641994,1778007039000,-669.60084203,0.000255,2]
[421641996,1778007039000,-5041.77364479,0.000255,2]
[421641995,1778007039000,-11178.029097,0.0001672,2]
[421642013,1778007039000,-1002.0447285,0.00026021,2]
[421641999,1778007039000,-206.36,0.00025748,2]
[421642010,1778007039000,-175.99001891,0.00025932,21]
[421641998,1778007039000,-156.8,0.00025571,7]
[421642008,1778007039000,-13911.47,0.00025786,2]
[421642009,1778007039000,-182.8,0.00025926,2]
[421642002,1778007039000,-170.51,0.00025781,2]
[421642001,1778007039000,-247.14,0.00025781,2]
[421642003,1778007039000,-294.89,0.00025786,2]
[421642004,1778007039000,-1145.49,0.00025786,2]
[421642011,1778007039000,-1002.27964987,0.00026021,2]
[421642006,1778007039000,-2909.96,0.00025786,2]
[421642005,1778007039000,-1139.52,0.00025786,2]
[421642012,1778007039000,-1001.25895047,0.00026021,2]
[421642021,1778007039000,-1000.93431225,0.00026021,2]
[421642000,1778007039000,-350.0,0.00025753,2]
[421642048,1778007039000,-6453.0,0.00027491,2]
[421642014,1778007039000,-1002.85939359,0.00026021,2]
[421642057,1778007039000,-2000.0,0.00028466,2]
[421642076,1778007039000,-276.9879,0.00030137,120]
[421642077,1778007039000,-155.57,0.00030137,2]
[421642086,1778007039000,-163.14375533,0.00030673,5]
[421642078,1778007039000,-213.5,0.00030155,2]
[421642079,1778007039000,-5466.0,0.00030167,2]
[421642088,1778007039000,-500.0,0.00030673,5]
[421642095,1778007039000,-500.0,0.00030673,5]
[421642096,1778007039000,-500.0,0.00030673,5]
[421642097,1778007039000,-500.0,0.00030673,5]
[421642098,1778007039000,-502.12436061,0.00030673,5]
[421642099,1778007039000,-500.30711514,0.00030673,5]
[421642092,1778007039000,-529.53523597,0.00030673,5]
[421642091,1778007039000,-500.0,0.00030673,5]
[421642085,1778007039000,-500.0,0.00030673,5]
[421642094,1778007039000,-211.85993991,0.00030673,5]
[421642087,1778007039000,-500.0,0.00030673,2]
[421642090,1778007039000,-500.0,0.00030673,5]
[421642102,1778007039000,-313.8625489,0.00030673,5]
[421642100,1778007039000,-500.0,0.00030673,5]
[421642101,1778007039000,-492.5181393,0.00030673,5]
[421642106,1778007039000,-500.0,0.00030673,5]
[421642105,1778007039000,-500.0,0.00030673,5]
[421642104,1778007039000,-500.0,0.00030673,5]
[421642108,1778007039000,-500.0,0.00030673,5]
[421642103,1778007039000,-163.65731937,0.00030673,5]
[421642110,1778007039000,-500.0,0.00030673,5]
[421642109,1778007039000,-500.0,0.00030673,2]
[421642056,1778007039000,-3000.0,0.00028212,5]
[421642093,1778007039000,-164.20128316,0.00030673,5]
[421642107,1778007039000,-500.0,0.00030673,5]
[421642089,1778007039000,-339.13701283,0.00030673,5]
[421642083,1778007039000,-181.52,0.00030192,2]
[421642084,1778007039000,-400.97,0.000302,2]
[421642047,1778007039000,-213.5,0.00027406,2]
[421642058,1778007039000,-3044.37851855,0.0002876,5]
[421642059,1778007039000,-2726.01558816,0.0002876,5]
[421642049,1778007039000,-2500.0,0.00027664,5]
[421642054,1778007039000,-503.92867751,0.00028121,2]
[421642051,1778007039000,-150.0,0.00027896,30]
[421642053,1778007039000,-428.98,0.00028,2]
[421642050,1778007039000,-2500.0,0.00027664,5]
[421642052,1778007039000,-428.98,0.00028,2]
[421642062,1778007039000,-150.0,0.00029534,2]
[421642072,1778007039000,-182.94,0.00030067,7]
[421642068,1778007039000,-472.75,0.00029811,14]
[421642069,1778007039000,-200.0,0.0003,2]
[421642055,1778007039000,-3000.0,0.00028212,5]
[421642060,1778007039000,-1005.84,0.00029333,2]
[421642074,1778007039000,-182.94,0.00030067,2]
[421642080,1778007039000,-181.5,0.00030192,2]
[421642071,1778007039000,-182.94,0.00030067,2]
[421642081,1778007039000,-181.5,0.00030192,7]
[421642082,1778007039000,-181.5,0.00030192,30]
[421642075,1778007039000,-266.2176,0.00030128,30]
[421642073,1778007039000,-182.94,0.00030067,30]
[421642066,1778007039000,-315.17,0.00029766,14]
[421642070,1778007039000,-472.75,0.00030049,2]
[421642063,1778007039000,-151.11654153,0.00029737,2]
[421642064,1778007039000,-315.17,0.00029766,14]
[421642065,1778007039000,-315.17,0.00029766,14]
[421642061,1778007039000,-200.0,0.00029439,2]
[421642067,1778007039000,-472.75,0.00029793,14]
[421642140,1778007040000,-1000.89354059,0.00031221,5]
[421642146,1778007040000,-237.0,0.00031302,30]
[421642141,1778007040000,-195.74378841,0.00031221,5]
[421642137,1778007040000,-1001.39619458,0.00031221,5]
[421642142,1778007040000,-1000.68512191,0.00031221,5]
[421642143,1778007040000,-158.0,0.00031302,30]
[421642145,1778007040000,-155.0,0.00031302,30]
[421642152,1778007040000,-1005.84,0.00032,30]
[421642148,1778007040000,-159.0,0.00031306,30]
[421642144,1778007040000,-157.0,0.00031302,30]
[421642150,1778007040000,-171.17498503,0.000319,2]
[421642155,1778007040000,-231.78108002,0.0003224,2]
[421642153,1778007040000,-2000.0,0.00032024,2]
[421642132,1778007040000,-565.46601972,0.00031221,5]
[421642149,1778007040000,-1077.10389741,0.00031768,5]
[421642147,1778007040000,-160.0,0.00031306,30]
[421642136,1778007040000,-1002.94713509,0.00031221,5]
[421642114,1778007040000,-155.0,0.00030678,2]
[421642139,1778007040000,-1007.26132603,0.00031221,5]
[421642154,1778007040000,-433.0,0.000322,5]
[421642111,1778007040000,-500.0,0.00030673,5]
[421642113,1778007040000,-500.0,0.00030673,5]
[421642112,1778007040000,-500.0,0.00030673,5]
[421642123,1778007040000,-632.04334291,0.00031221,5]
[421642115,1778007040000,-500.0,0.00030679,2]
[421642116,1778007040000,-150.0,0.00031011,2]
[421642121,1778007040000,-1004.46237175,0.00031221,5]
[421642118,1778007040000,-671.47599574,0.00031221,2]
[421642117,1778007040000,-1000.0,0.00031221,5]
[421642119,1778007040000,-1002.66108063,0.00031221,5]
[421642120,1778007040000,-408.07203194,0.00031221,5]
[421642125,1778007040000,-389.05301131,0.00031221,5]
[421642127,1778007040000,-1001.43521845,0.00031221,5]
[421642138,1778007040000,-817.80463741,0.00031221,2]
[421642130,1778007040000,-1001.0026199,0.00031221,5]
[421642129,1778007040000,-1001.05457656,0.00031221,5]
[421642135,1778007040000,-1117.27912892,0.00031221,5]
[421642151,1778007040000,-171.17498503,0.000319,2]
[421642159,1778007040000,-163.34627506,0.00032302,30]
[421642168,1778007040000,-500.0,0.00032773,5]
[421642174,1778007040000,-500.0,0.00032877,2]
[421642173,1778007040000,-150.0,0.00032773,5]
[421642189,1778007040000,-4074.9,0.00033038,30]
[421642182,1778007040000,-155.98,0.00032877,2]
[421642181,1778007040000,-555.21,0.00032877,2]
[421642183,1778007040000,-150.0,0.00032877,30]
[421642185,1778007040000,-162.51838138,0.00032999,2]
[421642176,1778007040000,-500.0,0.00032877,2]
[421642186,1778007040000,-170.948075,0.00033,2]
[421642188,1778007040000,-182.19555402,0.00033036,2]
[421642190,1778007040000,-1361.85880158,0.00033038,2]
[421642191,1778007040000,-392.0,0.00026137,2]
[421642193,1778007040000,-3051.98163635,0.00033038,2]
[421642192,1778007040000,-586.0,0.00026137,2]
[421642194,1778007040000,-1286.26560742,0.00033038,2]
[421642156,1778007040000,-909.0,0.0003224,2]
[421642184,1778007040000,-213.5,0.00032903,2]
[421642172,1778007040000,-165.44624915,0.00032773,5]
[421642187,1778007040000,-481.80579097,0.00033,2]
[421642175,1778007040000,-500.0,0.00032877,2]
[421642160,1778007040000,-155.0,0.00032302,30]
[421642171,1778007040000,-165.63551668,0.00032773,5]
[421642158,1778007040000,-158.0,0.00032302,30]
[421642161,1778007040000,-237.0,0.00032302,30]
[421642166,1778007040000,-150.0,0.00032562,2]
[421642163,1778007040000,-159.0,0.00032306,30]
[421642165,1778007040000,-171.0,0.00032466,2]
[421642164,1778007040000,-2855.04,0.0003246,2]
[421642162,1778007040000,-160.0,0.00032306,30]
[421642167,1778007040000,-500.0,0.00032773,5]
[421642170,1778007040000,-500.0,0.00032773,5]
[421642178,1778007040000,-500.0,0.00032877,2]
[421642169,1778007040000,-500.0,0.00032773,5]
[421642180,1778007040000,-273.64,0.00032877,2]
[421642157,1778007040000,-151.11654153,0.00032242,120]
[421642177,1778007040000,-500.0,0.00032877,2]
[421642179,1778007040000,-228.97494199,0.00032877,2]
[421642246,1778007043000,-1007.72604448,0.00033321,5]
[421642257,1778007043000,-155.0,0.00033746,2]
[421642250,1778007043000,-500.7987881,0.00033373,5]
[421642249,1778007043000,-500.0,0.00033373,5]
[421642240,1778007043000,-155.0,0.00033302,30]
[421642237,1778007043000,-170.948075,0.000333,2]
[421642248,1778007043000,-250.0,0.00033321,5]
[421642258,1778007043000,-500.0,0.00033843,26]
[421642247,1778007043000,-1001.45927776,0.00033321,5]
[421642259,1778007043000,-200.0,0.00033844,30]
[421642262,1778007043000,-1107.95832637,0.00033921,5]
[421642251,1778007043000,-500.0,0.00033373,5]
[421642256,1778007043000,-481.80579097,0.000337,2]
[421642254,1778007043000,-633.14,0.00033608,120]
[421642252,1778007043000,-289.54,0.00033376,2]
[421642255,1778007043000,-170.948075,0.000337,2]
[421642253,1778007043000,-165.63,0.00033588,2]
[421642261,1778007043000,-182.52057904,0.00033921,5]
[421642273,1778007043000,-500.0,0.00034099,7]
[421642272,1778007043000,-500.0,0.00034099,7]
[421642239,1778007043000,-158.0,0.00033302,30]
[421642260,1778007043000,-350.0,0.00033868,5]
[421642238,1778007043000,-481.80579097,0.000333,2]
[421642223,1778007043000,-181.29,0.00029952,2]
[421642243,1778007043000,-159.0,0.00033306,30]
[421642263,1778007043000,-170.948075,0.00034,2]
[421642219,1778007043000,-155.39,0.00024658,2]
[421642218,1778007043000,-186.36034437,0.00018541,2]
[421642220,1778007043000,-155.39,0.00025571,7]
[421642221,1778007043000,-155.39,0.00026484,30]
[421642222,1778007043000,-1500.0,0.00027397,2]
[421642224,1778007043000,-181.29,0.00029952,7]
[421642225,1778007043000,-181.29,0.00029952,30]
[421642226,1778007043000,-181.3,0.00029952,2]
[421642227,1778007043000,-3240.72395465,0.00033038,2]
[421642241,1778007043000,-237.0,0.00033302,30]
[421642231,1778007043000,-834.84277497,0.00033038,10]
[421642230,1778007043000,-20398.85882031,0.00033038,10]
[421642229,1778007043000,-9999.99,0.00033038,2]
[421642233,1778007043000,-7138.49054642,0.00033038,10]
[421642232,1778007043000,-2577.4778583,0.00033038,10]
[421642234,1778007043000,-1485.23,0.00033038,2]
[421642228,1778007043000,-1020.57,0.00033038,2]
[421642242,1778007043000,-160.0,0.00033306,30]
[421642236,1778007043000,-3016.03,0.00033038,2]
[421642244,1778007043000,-289.45986171,0.00033321,5]
[421642245,1778007043000,-813.12800716,0.00033321,5]
[421642235,1778007043000,-450.19,0.00033038,10]
[421642270,1778007043000,-500.0,0.00034099,7]
[421642264,1778007043000,-481.80579097,0.00034,2]
[421642268,1778007043000,-509.5702948,0.00034099,2]
[421642291,1778007043000,-500.0,0.00034118,26]
[421642293,1778007043000,-500.0,0.00034118,26]
[421642295,1778007043000,-200.0,0.00034229,2]
[421642296,1778007043000,-481.80579097,0.000343,2]
[421642300,1778007043000,-160.0,0.00034306,30]
[421642301,1778007043000,-159.0,0.00034306,30]
[421642309,1778007043000,-250.0,0.00034438,2]
[421642307,1778007043000,-250.0,0.00034438,2]
[421642304,1778007043000,-250.0,0.00034438,2]
[421642302,1778007043000,-500.0,0.00034329,2]
[421642292,1778007043000,-500.0,0.00034118,26]
[421642303,1778007043000,-450.0,0.00034416,5]
[421642310,1778007043000,-250.0,0.00034438,2]
[421642311,1778007043000,-250.0,0.00034438,2]
[421642306,1778007043000,-250.0,0.00034438,2]
[421642308,1778007043000,-250.0,0.00034438,2]
[421642312,1778007043000,-305.0,0.00034438,2]
[421642315,1778007043000,-500.0,0.00034817,5]
[421642313,1778007043000,-150.17,0.00034559,120]
[421642314,1778007043000,-500.0,0.00034642,2]
[421642316,1778007043000,-500.0,0.00034817,5]
[421642265,1778007043000,-505.3422016,0.00034099,26]
[421642305,1778007043000,-250.0,0.00034438,2]
[421642294,1778007043000,-151.0,0.00034182,7]
[421642299,1778007043000,-237.0,0.00034302,30]
[421642290,1778007043000,-521.15656416,0.00034118,26]
[421642317,1778007043000,-160.99876645,0.00034817,5]
[421642288,1778007043000,-500.0,0.00034118,7]
[421642266,1778007043000,-305.65687157,0.00034099,26]
[421642271,1778007043000,-500.0,0.00034099,7]
[421642267,1778007043000,-530.63446901,0.00034099,26]
[421642269,1778007043000,-500.0,0.00034099,7]
[421642274,1778007043000,-500.0,0.00034099,7]
[421642279,1778007043000,-500.0,0.00034099,26]
[421642284,1778007043000,-500.0,0.00034118,7]
[421642278,1778007043000,-500.0,0.00034099,26]
[421642280,1778007043000,-500.0,0.00034099,26]
[421642277,1778007043000,-500.0,0.00034099,26]
[421642281,1778007043000,-500.0,0.00034099,26]
[421642283,1778007043000,-500.0,0.00034099,26]
[421642276,1778007043000,-503.58061148,0.00034099,26]
[421642275,1778007043000,-500.0,0.00034099,26]
[421642285,1778007043000,-500.0,0.00034118,7]
[421642282,1778007043000,-500.0,0.00034099,26]
[421642287,1778007043000,-500.0,0.00034118,7]
[421642297,1778007043000,-167.97239077,0.00034302,30]
[421642298,1778007043000,-155.0,0.00034302,30]
[421642286,1778007043000,-500.0,0.00034118,7]
[421642289,1778007043000,-500.0,0.00034118,7]
[421642366,1778007044000,-200.0,0.00035933,2]
[421642365,1778007044000,-168.0,0.00035652,2]
[421642353,1778007044000,-773.0,0.00035427,30]
[421642350,1778007044000,-403.64113916,0.00035403,7]
[421642352,1778007044000,-773.0,0.00035427,30]
[421642346,1778007044000,-500.0,0.00035316,26]
[421642348,1778007044000,-1001.51069064,0.00035365,5]
[421642347,1778007044000,-1001.67394318,0.00035365,5]
[421642349,1778007044000,-500.0,0.00035403,7]
[421642357,1778007044000,-773.0,0.00035427,30]
[421642351,1778007044000,-500.0,0.00035403,26]
[421642356,1778007044000,-773.0,0.00035427,30]
[421642374,1778007044000,-379.21460854,0.00035987,3]
[421642359,1778007044000,-773.0,0.00035427,30]
[421642360,1778007044000,-1155.0,0.00035427,30]
[421642364,1778007044000,-230.0,0.00035652,2]
[421642362,1778007044000,-2000.0,0.00035582,2]
[421642363,1778007044000,-213.5,0.00035652,2]
[421642361,1778007044000,-633.27066016,0.00035477,5]
[421642368,1778007044000,-150.0,0.00035965,2]
[421642378,1778007044000,-500.0,0.00036198,26]
[421642371,1778007044000,-150.0,0.00035965,2]
[421642373,1778007044000,-243.0,0.00035965,2]
[421642367,1778007044000,-150.0,0.00035965,2]
[421642345,1778007044000,-500.0,0.00035316,7]
[421642358,1778007044000,-773.0,0.00035427,30]
[421642355,1778007044000,-773.0,0.00035427,30]
[421642319,1778007044000,-1692.076,0.00034874,40]
[421642344,1778007044000,-159.0,0.00035306,30]
[421642322,1778007044000,-301.70754747,0.00035,30]
[421642320,1778007044000,-500.0,0.00034929,5]
[421642321,1778007044000,-402.90525986,0.00034964,5]
[421642370,1778007044000,-150.0,0.00035965,2]
[421642323,1778007044000,-500.0,0.00035079,7]
[421642325,1778007044000,-250.0,0.00035097,2]
[421642324,1778007044000,-200.0,0.00035081,2]
[421642329,1778007044000,-250.0,0.00035097,2]
[421642326,1778007044000,-250.0,0.00035097,2]
[421642328,1778007044000,-250.0,0.00035097,2]
[421642331,1778007044000,-250.0,0.00035097,2]
[421642327,1778007044000,-250.0,0.00035097,2]
[421642330,1778007044000,-250.0,0.00035097,2]
[421642334,1778007044000,-151.0,0.00035097,2]
[421642332,1778007044000,-250.0,0.00035097,2]
[421642333,1778007044000,-250.0,0.00035097,2]
[421642340,1778007044000,-297.0,0.00035298,2]
[421642337,1778007044000,-150.0,0.00035298,2]
[421642343,1778007044000,-160.0,0.00035306,30]
[421642339,1778007044000,-150.0,0.00035298,2]
[421642336,1778007044000,-150.0,0.00035298,2]
[421642338,1778007044000,-150.0,0.00035298,2]
[421642341,1778007044000,-155.0,0.00035302,30]
[421642335,1778007044000,-150.0,0.00035298,2]
[421642342,1778007044000,-237.0,0.00035302,30]
[421642354,1778007044000,-773.0,0.00035427,30]
[421642369,1778007044000,-150.0,0.00035965,2]
[421642318,1778007044000,-185.191,0.00034874,40]
[421642372,1778007044000,-150.0,0.00035965,2]
[421642408,1778007044000,-150.0,0.000378,7]
[421642413,1778007044000,-150.0,0.000378,7]
[421642411,1778007044000,-150.0,0.000378,7]
[421642407,1778007044000,-150.0,0.000378,30]
[421642405,1778007044000,-250.0,0.00037782,2]
[421642409,1778007044000,-150.0,0.000378,7]
[421642412,1778007044000,-150.0,0.000378,7]
[421642410,1778007044000,-150.20530018,0.000378,7]
[421642415,1778007044000,-163.0,0.000378,30]
[421642417,1778007044000,-200.0,0.00037808,120]
[421642418,1778007044000,-200.0,0.00037808,120]
[421642419,1778007044000,-200.0,0.00037808,120]
[421642422,1778007044000,-200.0,0.00037808,120]
[421642421,1778007044000,-200.0,0.00037808,120]
[421642424,1778007044000,-200.0,0.00037808,120]
[421642426,1778007044000,-273.35052,0.00037808,120]
[421642427,1778007044000,-633.14,0.00037808,120]
[421642416,1778007044000,-200.0,0.00037808,120]
[421642425,1778007044000,-200.0,0.00037808,120]
[421642423,1778007044000,-200.0,0.00037808,120]
[421642429,1778007044000,-162.51838138,0.00038,7]
[421642430,1778007044000,-2729.40238917,0.00038064,2]
[421642428,1778007044000,-16481.19501628,0.0003788,2]
[421642431,1778007044000,-151.0,0.00038125,30]
[421642376,1778007044000,-4510.0,0.00036164,2]
[421642406,1778007044000,-224.0,0.00037782,2]
[421642403,1778007044000,-250.0,0.00037782,2]
[421642420,1778007044000,-200.0,0.00037808,120]
[421642404,1778007044000,-250.0,0.00037782,2]
[421642377,1778007044000,-156.41104866,0.00036164,2]
[421642414,1778007044000,-150.0,0.000378,7]
[421642375,1778007044000,-151.0,0.00036153,30]
[421642380,1778007044000,-500.0,0.00036198,2]
[421642390,1778007044000,-200.0,0.00036785,2]
[421642381,1778007044000,-500.0,0.00036198,7]
[421642379,1778007044000,-500.0,0.00036198,10]
[421642382,1778007044000,-150.0,0.00036257,2]
[421642388,1778007044000,-160.0,0.00036306,30]
[421642383,1778007044000,-207.25564637,0.00036257,2]
[421642387,1778007044000,-285.0,0.00036302,30]
[421642384,1778007044000,-150.0,0.00036257,2]
[421642389,1778007044000,-159.0,0.00036306,30]
[421642385,1778007044000,-155.65481829,0.00036302,30]
[421642400,1778007044000,-250.0,0.00037782,2]
[421642396,1778007044000,-160.34241234,0.0003755,5]
[421642386,1778007044000,-237.0,0.00036302,30]
[421642395,1778007044000,-159.0,0.00037306,30]
[421642399,1778007044000,-250.0,0.00037782,2]
[421642401,1778007044000,-250.0,0.00037782,2]
[421642397,1778007044000,-200.0,0.00037638,2]
[421642398,1778007044000,-250.0,0.00037782,2]
[421642402,1778007044000,-250.0,0.00037782,2]
[421642392,1778007044000,-155.57,0.00036986,30]
[421642393,1778007044000,-237.0,0.00037302,30]
[421642391,1778007044000,-155.0,0.00036814,2]
[421642394,1778007044000,-160.0,0.00037306,30]
[421642468,1778007045000,-300.0,0.00038341,2]
[421642473,1778007045000,-300.0,0.00038341,2]
[421642472,1778007045000,-1092.54449016,0.00038341,2]
[421642469,1778007045000,-300.0,0.00038341,2]
[421642463,1778007045000,-436.04649449,0.00038341,2]
[421642464,1778007045000,-300.0,0.00038341,2]
[421642470,1778007045000,-300.0,0.00038341,2]
[421642467,1778007045000,-300.0,0.00038341,2]
[421642471,1778007045000,-300.0,0.00038341,2]
[421642465,1778007045000,-483.1458369,0.00038341,2]
[421642475,1778007045000,-300.0,0.00038341,2]
[421642466,1778007045000,-309.23867643,0.00038341,2]
[421642476,1778007045000,-300.0,0.00038341,2]
[421642488,1778007045000,-526.71971113,0.00038341,2]
[421642477,1778007045000,-300.0,0.00038341,2]
[421642479,1778007045000,-300.0,0.00038341,2]
[421642478,1778007045000,-300.00000001,0.00038341,2]
[421642480,1778007045000,-300.0,0.00038341,2]
[421642481,1778007045000,-300.0,0.00038341,2]
[421642483,1778007045000,-300.0,0.00038341,2]
[421642482,1778007045000,-491.7271644,0.00038341,2]
[421642484,1778007045000,-300.0,0.00038341,2]
[421642485,1778007045000,-602.92697109,0.00038341,2]
[421642487,1778007045000,-300.0,0.00038341,2]
[421642498,1778007045000,-300.0,0.00038341,2]
[421642462,1778007045000,-451.01752187,0.00038341,2]
[421642474,1778007045000,-300.0,0.00038341,2]
[421642459,1778007045000,-462.95588259,0.00038341,2]
[421642434,1778007045000,-500.0,0.00038329,7]
[421642453,1778007045000,-300.0,0.00038341,2]
[421642432,1778007045000,-4008.8568,0.00038281,2]
[421642497,1778007045000,-300.0,0.00038341,2]
[421642438,1778007045000,-713.3,0.0003833,2]
[421642436,1778007045000,-1287.0,0.00038329,120]
[421642433,1778007045000,-200.4429,0.00038281,2]
[421642437,1778007045000,-1287.0,0.00038329,120]
[421642435,1778007045000,-500.0,0.00038329,26]
[421642440,1778007045000,-724.63723031,0.00038341,2]
[421642451,1778007045000,-300.0,0.00038341,2]
[421642450,1778007045000,-308.98716434,0.00038341,2]
[421642439,1778007045000,-309.04837965,0.00038341,2]
[421642442,1778007045000,-300.0,0.00038341,2]
[421642441,1778007045000,-301.20480826,0.00038341,2]
[421642447,1778007045000,-343.31248271,0.00038341,2]
[421642443,1778007045000,-300.0,0.00038341,2]
[421642445,1778007045000,-852.53214452,0.00038341,2]
[421642444,1778007045000,-302.99203413,0.00038341,2]
[421642446,1778007045000,-1792.91529134,0.00038341,2]
[421642448,1778007045000,-300.0,0.00038341,2]
[421642449,1778007045000,-1144.93714007,0.00038341,2]
[421642452,1778007045000,-862.73260888,0.00038341,2]
[421642454,1778007045000,-300.0,0.00038341,2]
[421642455,1778007045000,-300.0,0.00038341,2]
[421642461,1778007045000,-481.06571266,0.00038341,2]
[421642456,1778007045000,-310.28884427,0.00038341,2]
[421642458,1778007045000,-300.0,0.00038341,2]
[421642460,1778007045000,-300.0,0.00038341,2]
[421642457,1778007045000,-300.0,0.00038341,2]
[421642489,1778007045000,-1064.84593758,0.00038341,2]
[421642502,1778007045000,-300.0,0.00038341,2]
[421642490,1778007045000,-891.68135291,0.00038341,2]
[421642527,1778007045000,-483.1458369,0.00038341,2]
[421642528,1778007045000,-309.23867643,0.00038341,2]
[421642526,1778007045000,-300.0,0.00038341,2]
[421642536,1778007045000,-150.0,0.00038428,2]
[421642535,1778007045000,-4008.8568,0.00038418,2]
[421642534,1778007045000,-300.0,0.00038341,2]
[421642529,1778007045000,-300.0,0.00038341,2]
[421642532,1778007045000,-300.0,0.00038341,2]
[421642531,1778007045000,-300.0,0.00038341,2]